bitfinex/quotes_BTCUSD_20250608
["timestamp","ask_amount","ask_price","bid_price","bid_amount"]
[1749426615880,0.71987947,105740.0,105730.0,0.00014442]
[1749426616170,0.75750709,105740.0,105730.0,0.00014442]
[1749426628299,0.72918161,105740.0,105730.0,0.00014442]
[1749426629386,0.78562305,105740.0,105730.0,0.00014442]
[1749426631068,1.16398305,105740.0,105730.0,0.00014442]
[1749426632161,1.26356305,105740.0,105730.0,0.00014442]
[1749426632370,1.16398305,105740.0,105730.0,0.00014442]
[1749426635455,0.21411894,105730.0,105720.0,0.00025981]
[1749426635662,0.36146397,105730.0,105720.0,0.00030797]
[1749426636098,0.34596397,105730.0,105720.0,0.00030797]
[1749426636772,0.34596397,105730.0,105720.0,0.00130797]
[1749426636984,0.34596397,105730.0,105720.0,0.00230797]
[1749426641727,0.34596397,105730.0,105720.0,0.02005281]
[1749426642004,0.34596397,105730.0,105720.0,0.00230797]
[1749426642262,0.34596397,105730.0,105720.0,0.02005283]
[1749426642496,0.34596397,105730.0,105720.0,0.00230797]
[1749426643010,0.38359159,105730.0,105720.0,0.00230797]
[1749426643436,0.38359159,105730.0,105720.0,0.01780797]
[1749426643880,0.38359159,105730.0,105720.0,0.03555276]
[1749426644773,0.38359159,105730.0,105720.0,0.01780797]
[1749426644997,0.38359159,105730.0,105720.0,0.00230797]
[1749426645220,0.38359159,105730.0,105720.0,0.02005276]
[1749426645892,0.38359159,105730.0,105720.0,0.00230797]
[1749426646105,0.38359159,105730.0,105720.0,0.02005276]
[1749426646566,0.38359159,105730.0,105720.0,0.03555276]
[1749426647016,0.38359159,105730.0,105720.0,0.05329756]
[1749426647692,0.38359159,105730.0,105720.0,0.03555276]
[1749426647904,0.38359159,105730.0,105720.0,0.05329756]
[1749426648184,0.28719211,105730.0,105720.0,0.05205276]
[1749426648605,0.28719211,105730.0,105720.0,0.06979741]
[1749426648809,0.28719211,105730.0,105720.0,0.05205276]
[1749426649210,0.28719211,105730.0,105720.0,0.06979741]
[1749426649779,0.28719211,105730.0,105720.0,0.05205276]
[1749426650203,0.28719211,105730.0,105720.0,0.06979741]
[1749426650407,0.28719211,105730.0,105720.0,0.05205276]
[1749426650782,0.28719211,105730.0,105720.0,0.06979741]
[1749426651229,0.28719211,105730.0,105720.0,0.05205276]
[1749426652121,0.28719211,105730.0,105720.0,0.06979741]
[1749426652345,0.28719211,105730.0,105720.0,0.05205276]
[1749426653029,0.28719211,105730.0,105720.0,0.06979741]
[1749426653239,0.28719211,105730.0,105720.0,0.05205276]
[1749426653666,0.24956449,105730.0,105720.0,0.24123172]
[1749426653880,0.22127329,105730.0,105720.0,0.0615117]
[1749426654145,0.22127329,105730.0,105720.0,0.06979549]
[1749426654353,0.22127329,105730.0,105720.0,0.06979521]
[1749426654561,0.22127329,105730.0,105720.0,0.05205276]
[1749426654779,0.22127329,105730.0,105720.0,0.06979528]
[1749426655198,0.22127329,105730.0,105720.0,0.06979547]
[1749426655428,0.22127329,105730.0,105720.0,0.05205276]
[1749426655852,0.19861894,105730.0,105720.0,0.06979547]
[1749426656058,0.22127329,105730.0,105720.0,0.06979562]
[1749426656468,0.22127329,105730.0,105720.0,0.05205276]
[1749426656688,0.19861894,105730.0,105720.0,0.06979576]
[1749426656898,0.19861894,105730.0,105720.0,0.05205276]
[1749426657126,0.22127329,105730.0,105720.0,0.06979568]
[1749426657334,0.22127329,105730.0,105720.0,0.05205276]
[1749426657688,0.19861894,105730.0,105720.0,0.05205276]
[1749426675993,0.01891538,105730.0,105720.0,1.117721]
[1749426676204,0.56699174,105730.0,105720.0,1.0665022]
[1749426676420,0.57644979,105730.0,105720.0,1.05704379]
[1749426676603,0.56699246,105730.0,105720.0,0.64580864]
[1749426676874,0.56699246,105730.0,105720.0,0.65526714]
[1749426677151,0.56699246,105730.0,105720.0,0.64580864]
[1749426677380,0.53861912,105730.0,105720.0,0.43771224]
[1749426680545,0.53861912,105730.0,105720.0,0.63635014]
[1749426680981,0.53861912,105730.0,105720.0,0.65526766]
[1749426682381,0.53861912,105730.0,105720.0,0.67418475]
[1749426685136,0.35891583,105730.0,105720.0,0.67418475]
[1749426685336,0.36837316,105730.0,105720.0,0.67418413]
[1749426686016,0.36837316,105730.0,105720.0,0.66472581]
[1749426686224,0.54807672,105730.0,105720.0,0.63634996]
[1749426686645,0.54807672,105730.0,105720.0,0.64580863]
[1749426686886,0.35891565,105730.0,105720.0,0.65526722]
[1749426687093,0.35891457,105730.0,105720.0,1.10786104]
[1749426687542,0.04156701,105740.0,105730.0,0.24037672]
[1749426687757,0.04156701,105740.0,105730.0,0.7893693]
[1749426687758,0.37782719,105740.0,105730.0,0.7893693]
[1749426687975,0.36837013,105740.0,105730.0,0.79882672]
[1749426688177,0.37782719,105740.0,105730.0,0.79882672]
[1749426688386,0.36837013,105740.0,105730.0,0.79882672]
[1749426688610,0.37782719,105740.0,105730.0,0.79882672]
[1749426688827,0.37882719,105740.0,105730.0,0.79882672]
[1749426689041,0.38928434,105740.0,105730.0,0.7893693]
[1749426689253,0.38928434,105740.0,105730.0,0.3462338]
[1749426689462,0.37982719,105740.0,105730.0,0.35569122]
[1749426689656,0.37982719,105740.0,105730.0,0.79882672]
[1749426691147,0.37037013,105740.0,105730.0,0.79882672]
[1749426692629,0.36091315,105740.0,105730.0,0.79882672]
[1749426693039,0.37037004,105740.0,105730.0,0.79882672]
[1749426693248,0.36091315,105740.0,105730.0,0.79882672]
[1749426693458,0.37037004,105740.0,105730.0,0.79882672]
[1749426694283,0.36091315,105740.0,105730.0,0.79882672]
[1749426694689,0.37037004,105740.0,105730.0,0.79882672]
[1749426695541,0.37982702,105740.0,105730.0,0.79882672]
[1749426697239,0.37037004,105740.0,105730.0,0.79882672]
[1749426697453,0.37982702,105740.0,105730.0,0.79882672]
[1749426700553,0.342,105740.0,105730.0,0.81336757]
[1749426700773,0.36091297,105740.0,105730.0,0.81336757]
[1749426702683,0.37036977,105740.0,105730.0,0.81336757]
[1749426702899,0.37036968,105740.0,105730.0,0.81336757]
[1749426703116,0.37036968,105740.0,105730.0,0.82264399]
[1749426704601,0.002,105740.0,105730.0,0.91904347]
[1749426704839,0.01145635,105740.0,105730.0,0.91904347]
[1749426705282,0.002,105740.0,105730.0,0.91904347]
[1749426705694,0.01145644,105740.0,105730.0,0.91904347]
[1749426705913,0.01045644,105740.0,105730.0,0.91904347]
[1749426706137,0.00945644,105740.0,105730.0,0.91904347]
[1749426707759,0.01891315,105740.0,105730.0,0.47590797]
[1749426707964,0.01891315,105740.0,105730.0,0.82264399]
[1749426709638,0.01891315,105740.0,105730.0,0.37950849]
[1749426709847,0.02836995,105740.0,105730.0,0.37950849]
[1749426710064,0.02836995,105740.0,105730.0,0.75742849]
[1749426711156,0.02836995,105740.0,105730.0,1.20056399]
[1749426711315,0.22697011,105740.0,105730.0,0.81318657]
[1749426711530,0.22697011,105740.0,105730.0,1.11188399]
[1749426711531,0.03782693,105740.0,105730.0,1.11188399]
[1749426712182,0.03782684,105740.0,105730.0,0.66874849]
[1749426712399,0.02836995,105740.0,105730.0,0.72293793]
[1749426713253,0.01891315,105740.0,105730.0,0.72293793]
[1749426713461,0.01891306,105740.0,105730.0,1.16607343]
[1749426713693,0.36836797,105750.0,105740.0,0.23271384]
[1749426713913,0.35891118,105750.0,105740.0,0.24217037]
[1749426714139,0.36836717,105750.0,105740.0,0.79780535]
[1749426714570,0.35891118,105750.0,105740.0,0.35466985]
[1749426714787,0.36936699,105750.0,105740.0,0.8123462]
[1749426715282,0.37882307,105750.0,105740.0,0.8123462]
[1749426715933,0.37982307,105750.0,105740.0,0.3692107]
[1749426718101,0.37982307,105750.0,105740.0,0.8123462]
[1749426719527,0.37036699,105750.0,105740.0,0.90874568]
[1749426719735,0.37982307,105750.0,105740.0,0.90874568]
[1749426720794,0.37982307,105750.0,105740.0,0.89264568]
[1749426721004,0.37982307,105750.0,105740.0,0.90824568]
[1749426726417,0.37982307,105750.0,105740.0,0.8118462]
[1749426727377,0.37982307,105750.0,105740.0,0.3687107]
[1749426727580,0.37982307,105750.0,105740.0,0.8118462]
[1749426728427,0.37982307,105750.0,105740.0,0.3687107]
[1749426728637,0.37982307,105750.0,105740.0,0.8118462]
[1749426728870,0.37982307,105750.0,105740.0,0.89264568]
[1749426729642,0.37036699,105750.0,105740.0,0.90794568]
[1749426729863,0.002,105750.0,105740.0,1.35108118]
[1749426730138,0.01145563,105750.0,105740.0,1.35108118]
[1749426730343,0.01145554,105750.0,105740.0,1.35108118]
[1749426730572,0.002,105750.0,105740.0,0.90820549]
[1749426730791,0.002,105750.0,105740.0,1.35134099]
[1749426731010,0.01045554,105750.0,105740.0,1.35134099]
[1749426731455,0.002,105750.0,105740.0,1.35134099]
[1749426731674,0.001,105750.0,105740.0,1.35134099]
[1749426731906,0.001,105750.0,105740.0,1.43998099]
[1749426732140,0.002,105750.0,105740.0,1.43998099]
[1749426732371,0.001,105750.0,105740.0,1.43998099]
[1749426733286,0.02836449,105760.0,105750.0,0.24733384]
[1749426733501,0.02836449,105760.0,105750.0,1.1882283]
[1749426733502,0.0283644,105760.0,105750.0,1.1882283]
[1749426734158,0.00945456,105760.0,105750.0,1.1882283]
[1749426734380,0.0189093,105760.0,105750.0,1.1882283]
[1749426734605,0.00945456,105760.0,105750.0,1.1882283]
[1749426734822,0.0199093,105760.0,105750.0,1.1882283]
[1749426735271,0.01045456,105760.0,105750.0,1.1882283]
[1749426735494,0.0209093,105760.0,105750.0,1.1882283]
[1749426735944,0.03981923,105760.0,105750.0,1.1571283]
[1749426736674,0.03036413,105760.0,105750.0,1.1571283]
[1749426736890,0.03981914,105760.0,105750.0,1.1571283]
[1749426737539,0.04927433,105760.0,105750.0,1.1571283]
[1749426737755,0.03981914,105760.0,105750.0,1.1571283]
[1749426738651,0.04927424,105760.0,105750.0,1.1571283]
[1749426739717,0.04927424,105760.0,105750.0,1.1721283]
[1749426740379,0.03981914,105760.0,105750.0,1.1721283]
[1749426741462,0.03036413,105760.0,105750.0,0.7450928]
[1749426741709,0.03036413,105760.0,105750.0,1.1882283]
[1749426741933,0.03036413,105760.0,105750.0,1.18848811]
[1749426742139,0.03981905,105760.0,105750.0,1.18848811]
[1749426742349,0.03981905,105760.0,105750.0,1.17238811]
[1749426742562,0.04927424,105760.0,105750.0,1.17238811]
[1749426743447,0.04927415,105760.0,105750.0,1.17238811]
[1749426743870,0.04927415,105760.0,105750.0,1.15738811]
[1749426744348,0.04927478,105760.0,105750.0,1.15738811]
[1749426746581,0.04927478,105760.0,105750.0,1.17288811]
[1749426746791,0.03981959,105760.0,105750.0,1.17288811]
[1749426748067,0.03036449,105760.0,105750.0,1.17288811]
[1749426748947,0.02090957,105760.0,105750.0,1.17288811]
[1749426749165,0.03036467,105760.0,105750.0,1.17288811]
[1749426749859,0.03036467,105760.0,105750.0,0.72975261]
[1749426750076,0.03981986,105760.0,105750.0,1.17288811]
[1749426750506,0.26022727,105760.0,105750.0,0.41563698]
[1749426750720,0.26022727,105760.0,105750.0,0.70641322]
[1749426750946,0.26022727,105760.0,105750.0,0.70641331]
[1749426751164,0.26968255,105760.0,105750.0,0.71586903]
[1749426753141,0.26968318,105760.0,105750.0,0.71586903]
[1749426753382,0.23838318,105760.0,105750.0,1.15900453]
[1749426753620,0.25478318,105760.0,105750.0,1.15900453]
[1749426754055,0.25478318,105760.0,105750.0,1.25540401]
[1749426754269,0.27118318,105760.0,105750.0,0.81226851]
[1749426754748,0.27118318,105760.0,105750.0,0.82172414]
[1749426756741,0.08207577,105760.0,105750.0,0.82172414]
[1749426757621,0.05593945,105760.0,105750.0,0.82172414]
[1749426757834,0.03953945,105760.0,105750.0,0.82172414]
[1749426758044,0.03953945,105760.0,105750.0,1.26485964]
[1749426758254,0.02062898,105760.0,105750.0,1.26485964]
[1749426760020,0.02036917,105760.0,105750.0,1.26459983]
[1749426762175,0.02982436,105760.0,105750.0,1.26459983]
[1749426764513,0.23339272,105750.0,105740.0,0.10314085]
[1749426764741,0.23903718,105750.0,105740.0,0.47403948]
[1749426764969,0.23903718,105750.0,105740.0,0.38543948]
[1749426765172,0.23903718,105750.0,105740.0,0.57458266]
[1749426765381,0.23903718,105750.0,105740.0,0.59349653]
[1749426765593,0.23903718,105750.0,105740.0,0.30445653]
[1749426765800,0.22958137,105750.0,105740.0,0.38543948]
[1749426767363,0.22958137,105750.0,105740.0,0.39489663]
[1749426767819,0.22958137,105750.0,105740.0,0.58403981]
[1749426768426,0.22958137,105750.0,105740.0,0.59349687]
[1749426769196,0.22958137,105750.0,105740.0,0.60295385]
[1749426769810,0.22958137,105750.0,105740.0,0.29849715]
[1749426770012,0.22012529,105750.0,105740.0,0.29849715]
[1749426770193,0.0189136,105740.0,105730.0,0.21744241]
[1749426770403,0.0189136,105740.0,105730.0,0.70602274]
[1749426771151,0.01891342,105740.0,105730.0,0.70602274]
[1749426771495,0.01891342,105740.0,105730.0,0.70802274]
[1749426772536,0.02837013,105740.0,105730.0,0.70802274]
[1749426772740,0.02837013,105740.0,105730.0,0.71002274]
[1749426773521,0.03782666,105740.0,105730.0,0.71002274]
[1749426773945,0.02836986,105740.0,105730.0,0.80642222]
[1749426774357,0.01891315,105740.0,105730.0,0.80642222]
[1749426774563,0.02836986,105740.0,105730.0,0.80642222]
[1749426775581,0.01891315,105740.0,105730.0,0.80642222]
[1749426777930,0.00945653,105740.0,105730.0,0.80642222]
[1749426782382,0.01891324,105740.0,105730.0,0.80642222]
[1749426783265,0.01891315,105740.0,105730.0,0.80642222]
[1749426783387,0.00945635,105740.0,105730.0,0.80642222]
[1749426783587,0.00945635,105740.0,105730.0,1.15286486]
[1749426784012,0.23903754,105750.0,105740.0,0.21751384]
[1749426785280,0.04991225,105750.0,105740.0,0.21751384]
[1749426785714,0.23903754,105750.0,105740.0,0.21751384]
[1749426787691,0.23903754,105750.0,105740.0,0.66031879]
[1749426787692,0.04045572,105750.0,105740.0,0.66031879]
[1749426787892,0.03481118,105750.0,105740.0,0.66977532]
[1749426788103,0.04426717,105750.0,105740.0,0.66977532]
[1749426788630,0.05372325,105750.0,105740.0,0.66977532]
[1749426788830,0.05372325,105750.0,105740.0,0.22697037]
[1749426789080,0.06317951,105750.0,105740.0,0.21751384]
[1749426789315,0.05372325,105750.0,105740.0,0.22697037]
[1749426792259,0.03782325,105750.0,105740.0,0.22697037]
[1749426794912,0.04727942,105750.0,105740.0,0.22697037]
[1749426795539,0.02836708,105750.0,105740.0,0.66977532]
[1749426795745,0.00945492,105760.0,105750.0,0.21749299]
[1749426795950,0.00945492,105760.0,105750.0,1.05515288]
[1749426795951,0.01890939,105760.0,105750.0,1.05515288]
[1749426796142,0.02836449,105760.0,105750.0,1.04569742]
[1749426796345,0.03781968,105760.0,105750.0,1.04569742]
[1749426796548,0.03782031,105760.0,105750.0,1.1420969]
[1749426796987,0.03882031,105760.0,105750.0,1.1420969]
[1749426797406,0.03882094,105760.0,105750.0,1.1420969]
[1749426797791,0.03982094,105760.0,105750.0,1.1420969]
[1749426798236,0.02090957,105760.0,105750.0,1.1420969]
[1749426798459,0.03036467,105760.0,105750.0,1.1420969]
[1749426798670,0.02090957,105760.0,105750.0,1.17253775]
[1749426798952,0.03981986,105760.0,105750.0,1.15663775]
[1749426799161,0.04927514,105760.0,105750.0,1.15663775]
[1749426799398,0.5689279,105760.0,105750.0,1.15663793]
[1749426799633,0.37982049,105760.0,105750.0,1.15663793]
[1749426799864,0.37982049,105760.0,105750.0,1.16609356]
[1749426800567,0.36091002,105760.0,105750.0,1.25465356]
[1749426800803,0.37036521,105760.0,105750.0,1.25465356]
[1749426801028,0.36091002,105760.0,105750.0,1.25465356]
[1749426801604,0.36090957,105760.0,105750.0,1.25465356]
[1749426801830,0.37036467,105760.0,105750.0,1.25465356]
[1749426802049,0.37036467,105760.0,105750.0,0.81184861]
[1749426802953,0.37036467,105760.0,105750.0,0.82774861]
[1749426803660,0.56892727,105760.0,105750.0,0.41537717]
[1749426803864,0.5658177,105760.0,105750.0,0.79289735]
[1749426804084,0.5563626,105760.0,105750.0,0.79289735]
[1749426804986,0.5563626,105760.0,105750.0,0.80235325]
[1749426807250,0.5709626,105760.0,105750.0,0.67250094]
[1749426807495,0.5709626,105760.0,105750.0,0.68195702]
[1749426807765,0.5553626,105760.0,105750.0,0.70086882]
[1749426808016,0.36936539,105760.0,105750.0,0.71032454]
[1749426808270,0.37782076,105760.0,105750.0,0.71032454]
[1749426809870,0.36836539,105760.0,105750.0,0.75598851]
[1749426810076,0.36836539,105760.0,105750.0,1.19879346]
[1749426810568,0.37782076,105760.0,105750.0,1.19879346]
[1749426811709,0.37782076,105760.0,105750.0,0.75598851]
[1749426812658,0.24597661,105770.0,105760.0,0.2080177]
[1749426812946,0.36836216,105770.0,105760.0,0.66027739]
[1749426813158,0.38727083,105770.0,105760.0,0.21747244]
[1749426813984,0.38831895,105770.0,105760.0,0.21747244]
[1749426814817,0.38931895,105770.0,105760.0,0.21747244]
[1749426815021,0.38931957,105770.0,105760.0,0.21747244]
[1749426815435,0.56895499,105770.0,105760.0,0.2080177]
[1749426816262,0.56895499,105770.0,105760.0,0.21747262]
[1749426819390,0.55950079,105770.0,105760.0,0.19856269]
[1749426819599,0.5655465,105770.0,105760.0,0.19856269]
[1749426820003,0.5655465,105770.0,105760.0,0.20801788]
[1749426820208,0.5655465,105770.0,105760.0,0.21747298]
[1749426822214,0.5500465,105770.0,105760.0,0.21747298]
[1749426822419,0.5500465,105770.0,105760.0,0.22692799]
[1749426826512,0.5500465,105770.0,105760.0,0.50635298]
[1749426830426,0.5500465,105770.0,105760.0,0.51580799]
[1749426831626,0.5500465,105770.0,105760.0,0.50635298]
[1749426831837,0.5656465,105770.0,105760.0,0.49689788]
[1749426832054,0.55619212,105770.0,105760.0,0.50635298]
[1749426832276,0.55619212,105770.0,105760.0,0.51580799]
[1749426832724,0.37655679,105770.0,105760.0,0.52526291]
[1749426832933,0.55004632,105770.0,105760.0,0.51580799]
[1749426833828,0.55004632,105770.0,105760.0,0.49689788]
[1749426834036,0.56574632,105770.0,105760.0,0.49689788]
[1749426836379,0.20801779,105760.0,105750.0,0.43935706]
[1749426836594,0.01891038,105760.0,105750.0,0.82459654]
[1749426836812,0.02836512,105760.0,105750.0,0.83405262]
[1749426837715,0.0378204,105760.0,105750.0,0.83405262]
[1749426838603,0.04727505,105760.0,105750.0,0.83405262]
[1749426839224,0.02836458,105760.0,105750.0,0.83405262]
[1749426839467,0.03781977,105760.0,105750.0,0.83405262]
[1749426840121,0.04727505,105760.0,105750.0,0.83405262]
[1749426841153,0.02836458,105760.0,105750.0,0.83405262]
[1749426841373,0.03781977,105760.0,105750.0,0.83405262]
[1749426842028,0.01890948,105760.0,105750.0,1.27685757]
[1749426842236,0.02836449,105760.0,105750.0,1.27685757]
[1749426842454,0.0283644,105760.0,105750.0,1.27685757]
[1749426844421,0.01890948,105760.0,105750.0,1.27685757]
[1749426845745,0.01890948,105760.0,105750.0,0.89953757]
[1749426845957,0.01890948,105760.0,105750.0,1.27677757]
[1749426847471,0.00945465,105760.0,105750.0,1.27677757]
[1749426847691,0.3911096,105770.0,105760.0,0.20801752]
[1749426847902,0.36841108,105770.0,105760.0,0.20801752]
[1749426848624,0.35895661,105770.0,105760.0,0.21747235]
[1749426848850,0.36841108,105770.0,105760.0,0.20801752]
[1749426849073,0.36941108,105770.0,105760.0,0.20801752]
[1749426849294,0.38621108,105770.0,105760.0,0.20801752]
[1749426849952,0.57530061,105770.0,105760.0,0.20801752]
[1749426850172,0.59799913,105770.0,105760.0,0.20801752]
[1749426851898,0.59799913,105770.0,105760.0,0.1985626]
[1749426852104,0.58854502,105770.0,105760.0,0.1985626]
[1749426852552,0.57909064,105770.0,105760.0,0.1985626]
[1749426852770,0.57909064,105770.0,105760.0,0.19856278]
[1749426852984,0.57909064,105770.0,105760.0,0.20801806]
[1749426853615,0.57909064,105770.0,105760.0,0.21747325]
[1749426854466,0.38365469,105770.0,105760.0,0.67918795]
[1749426854693,0.38931869,105770.0,105760.0,0.23638309]
[1749426855561,0.57580061,105770.0,105760.0,0.21747325]
[1749426855773,0.59849913,105770.0,105760.0,0.20801806]
[1749426856000,0.58904508,105770.0,105760.0,0.21747325]
[1749426856628,0.5795907,105770.0,105760.0,0.20801806]
[1749426858182,0.5795907,105770.0,105760.0,0.21747325]
[1749426861013,0.55689212,105770.0,105760.0,0.21747325]
[1749426863004,0.55689212,105770.0,105760.0,0.12910741]
[1749426863226,0.55689212,105770.0,105760.0,0.13856269]
[1749426863901,0.55689212,105770.0,105760.0,0.42732269]
[1749426864324,0.55689212,105770.0,105760.0,0.42732278]
[1749426864543,0.55689212,105770.0,105760.0,0.43677806]
[1749426866075,0.2080177,105760.0,105750.0,0.79368264]
[1749426866333,0.2391177,105760.0,105750.0,0.37716]
[1749426866549,0.19858973,105750.0,105740.0,0.19860033]
[1749426866778,0.19858973,105750.0,105740.0,0.69107385]
[1749426866990,0.20804572,105750.0,105740.0,0.7056147]
[1749426867209,0.20804572,105750.0,105740.0,0.33791159]
[1749426867422,0.20804572,105750.0,105740.0,0.72452839]
[1749426868072,0.20804572,105750.0,105740.0,0.72452795]
[1749426868493,0.21750198,105750.0,105740.0,0.72452795]
[1749426868916,0.21750198,105750.0,105740.0,0.72852795]
[1749426869348,0.02836842,105750.0,105740.0,0.72852751]
[1749426869774,0.01891216,105750.0,105740.0,0.72852706]
[1749426870377,0.02836842,105750.0,105740.0,0.71907053]
[1749426870629,0.02836842,105750.0,105740.0,0.34191053]
[1749426870843,0.02836842,105750.0,105740.0,0.71907053]
[1749426872119,0.02836842,105750.0,105740.0,0.34191053]
[1749426872330,0.02836842,105750.0,105740.0,0.70961391]
[1749426872969,0.21749371,105750.0,105740.0,0.68561635]
[1749426873174,0.02836842,105750.0,105740.0,0.70452968]
[1749426874583,0.02836842,105750.0,105740.0,0.69507306]
[1749426874785,0.02836842,105750.0,105740.0,0.68561635]
[1749426875340,0.04356842,105750.0,105740.0,0.68561635]
[1749426875544,0.03411216,105750.0,105740.0,0.69507288]
[1749426875748,0.01891216,105750.0,105740.0,0.69507297]
[1749426876408,0.02836842,105750.0,105740.0,0.69507297]
[1749426877999,0.01891216,105750.0,105740.0,0.7045295]
[1749426879387,0.01891216,105750.0,105740.0,0.3273695]
[1749426879595,0.01891216,105750.0,105740.0,0.7044895]
[1749426881258,0.02836779,105750.0,105740.0,0.7044895]
[1749426883950,0.01891118,105750.0,105740.0,0.7044895]
[1749426884161,0.02836699,105750.0,105740.0,1.14729445]
[1749426884369,0.02836699,105750.0,105740.0,1.16289445]
[1749426884570,0.02836699,105750.0,105740.0,1.16285445]
[1749426885671,0.03782289,105750.0,105740.0,1.16285445]
[1749426888111,0.02836699,105750.0,105740.0,1.16285445]
[1749426889190,0.03782289,105750.0,105740.0,1.16285445]
[1749426895637,0.03496814,105750.0,105740.0,1.25925393]
[1749426895837,0.03496814,105750.0,105740.0,0.81644898]
[1749426896300,0.02551224,105750.0,105740.0,0.81644898]
[1749426900518,0.02551224,105750.0,105740.0,0.80084898]
[1749426901417,0.02551224,105750.0,105740.0,0.7044495]
[1749426902308,0.02551224,105750.0,105740.0,0.70302375]
[1749426904391,0.03496823,105750.0,105740.0,0.70302375]
[1749426904600,0.01605643,105750.0,105740.0,0.70302375]
[1749426905004,0.02551224,105750.0,105740.0,0.70294375]
[1749426905128,0.01605643,105750.0,105740.0,0.32594375]
[1749426905333,0.01605643,105750.0,105740.0,0.70294375]
[1749426906864,0.02551224,105750.0,105740.0,0.70294375]
[1749426907218,0.01605643,105750.0,105740.0,0.70294375]
[1749426908242,0.01605643,105750.0,105740.0,0.7174846]
[1749426908678,0.01891127,105750.0,105740.0,0.7174846]
[1749426909517,0.02836681,105750.0,105740.0,0.7174846]
[1749426910115,0.0378228,105750.0,105740.0,0.7174846]
[1749426915095,0.04727888,105750.0,105740.0,0.7174846]
[1749426915296,0.0378228,105750.0,105740.0,0.7174846]
[1749426916973,0.0378228,105750.0,105740.0,0.3404846]
[1749426917179,0.0535228,105750.0,105740.0,0.7173646]
[1749426919278,0.22694809,105750.0,105740.0,0.70790807]
[1749426919482,0.0378228,105750.0,105740.0,0.7173646]
[1749426920316,0.04727888,105750.0,105740.0,0.7173646]
[1749426922035,0.0378228,105750.0,105740.0,0.7173646]
[1749426922243,0.04727888,105750.0,105740.0,0.7173646]
[1749426923287,0.04727888,105750.0,105740.0,0.74383802]
[1749426924755,0.04727888,105750.0,105740.0,0.7173646]
[1749426926559,0.57973736,105750.0,105740.0,0.004]
[1749426926821,0.60241263,105750.0,105740.0,0.004]
[1749426938121,0.69881211,105750.0,105740.0,0.004]
[1749426939030,0.7271562,105750.0,105740.0,0.002]
[1749426939496,0.54807654,105730.0,105720.0,0.28852]
[1749426939729,0.53863772,105720.0,105710.0,0.22555984]
[1749426939999,0.53863772,105720.0,105710.0,0.48848]
[1749426940850,0.53863772,105720.0,105710.0,0.48852816]
[1749426941061,0.53863772,105720.0,105710.0,0.20004816]
[1749426941325,0.55453772,105720.0,105710.0,0.20004816]
[1749426941541,0.57093772,105720.0,105710.0,0.48852816]
[1749426941765,0.57093772,105720.0,105710.0,0.20004816]
[1749426942019,0.57093772,105720.0,105710.0,0.48856816]
[1749426942496,0.57093772,105720.0,105710.0,0.20304816]
[1749426942963,0.57093772,105720.0,105710.0,0.49356816]
[1749426943149,0.57093772,105720.0,105710.0,0.20504816]
[1749426944503,0.57093772,105720.0,105710.0,0.20304816]
[1749426944716,0.57093772,105720.0,105710.0,0.20004816]
[1749426945175,0.57093772,105720.0,105710.0,0.20104816]
[1749426945856,0.58048869,105720.0,105710.0,0.20104816]
[1749426946317,0.58048869,105720.0,105710.0,0.20204816]
[1749426947793,0.54818869,105720.0,105710.0,0.20204816]
[1749426948020,0.55764736,105720.0,105710.0,0.39124501]
[1749426948252,0.54809639,105720.0,105710.0,0.43240476]
[1749426948480,0.53863772,105720.0,105710.0,0.2514806]
[1749426948699,0.53863772,105720.0,105710.0,0.25148051]
[1749426948921,0.53863772,105720.0,105710.0,0.25148048]
[1749426949139,0.53863772,105720.0,105710.0,0.25148047]
[1749426949375,0.53863772,105720.0,105710.0,0.21754816]
[1749426949630,0.53863772,105720.0,105710.0,0.21978048]
[1749426949845,0.55493772,105720.0,105710.0,0.49056816]
[1749426950126,0.55493772,105720.0,105710.0,0.50830057]
[1749426950345,0.55493772,105720.0,105710.0,0.49056816]
[1749426950783,0.55493772,105720.0,105710.0,0.50830059]
[1749426951000,0.55493772,105720.0,105710.0,0.49056816]
[1749426951461,0.56416976,105720.0,105710.0,0.50830059]
[1749426951672,0.56416976,105720.0,105710.0,0.49056816]
[1749426951888,0.56416976,105720.0,105710.0,0.50830079]
[1749426952132,0.56416976,105720.0,105710.0,0.5083007]
[1749426952328,0.56416976,105720.0,105710.0,0.49056816]
[1749426952548,0.56416976,105720.0,105710.0,0.5083006]
[1749426954320,0.56416976,105720.0,105710.0,0.49056816]
[1749426954766,0.58036976,105720.0,105710.0,0.21978062]
[1749426954981,0.58036976,105720.0,105710.0,0.49056816]
[1749426955229,0.58036976,105720.0,105710.0,0.50830062]
[1749426955444,0.58036976,105720.0,105710.0,0.50830075]
[1749426955879,0.58036976,105720.0,105710.0,0.49056816]
[1749426956107,0.58036976,105720.0,105710.0,0.50830076]
[1749426956317,0.58036976,105720.0,105710.0,0.50830075]
[1749426956540,0.58036976,105720.0,105710.0,0.49056816]
[1749426956753,0.58036976,105720.0,105710.0,0.50830075]
[1749426956966,0.58036976,105720.0,105710.0,0.49056816]
[1749426957192,0.58036976,105720.0,105710.0,0.50830075]
[1749426957446,0.58036976,105720.0,105710.0,0.49056816]
[1749426957665,0.58036976,105720.0,105710.0,0.50830731]
[1749426957915,0.58036976,105720.0,105710.0,0.49056816]
[1749426958123,0.58036976,105720.0,105710.0,0.50830727]
[1749426958782,0.58036976,105720.0,105710.0,0.50830728]
[1749426959002,0.58036976,105720.0,105710.0,0.21978727]
[1749426959264,0.58036976,105720.0,105710.0,0.21978794]
[1749426959471,0.58036976,105720.0,105710.0,0.49056816]
[1749426960107,0.58036976,105720.0,105710.0,0.50830789]
[1749426960314,0.58036976,105720.0,105710.0,0.21978789]
[1749426960535,0.58036976,105720.0,105710.0,0.50830801]
[1749426960743,0.58036976,105720.0,105710.0,0.20204816]
[1749426960952,0.58036976,105720.0,105710.0,0.49056816]
[1749426961166,0.58036976,105720.0,105710.0,0.50830805]
[1749426961369,0.58036976,105720.0,105710.0,0.50830807]
[1749426961578,0.58036976,105720.0,105710.0,0.50830806]
[1749426961802,0.58036976,105720.0,105710.0,0.20204816]
[1749426962244,0.58036976,105720.0,105710.0,0.49052816]
[1749426962466,0.58036976,105720.0,105710.0,0.50826806]
[1749426962688,0.58036976,105720.0,105710.0,0.50826807]
[1749426963305,0.58036976,105720.0,105710.0,0.50826806]
[1749426963553,0.58036976,105720.0,105710.0,0.49052816]
[1749426963789,0.58036976,105720.0,105710.0,0.50826806]
[1749426964006,0.58036976,105720.0,105710.0,0.49052816]
[1749426964217,0.56416976,105720.0,105710.0,0.50826806]
[1749426964677,0.56416976,105720.0,105710.0,0.49052816]
[1749426964890,0.56416976,105720.0,105710.0,0.50826806]
[1749426965389,0.58682802,105720.0,105710.0,0.50826806]
[1749426965762,0.58682802,105720.0,105710.0,0.50826807]
[1749426965953,0.58682802,105720.0,105710.0,0.49052816]
[1749426966174,0.58682802,105720.0,105710.0,0.50826807]
[1749426966604,0.58682802,105720.0,105710.0,0.49052816]
[1749426967052,0.58682802,105720.0,105710.0,0.50826806]
[1749426967604,0.58682802,105720.0,105710.0,0.49052816]
[1749426967824,0.58682802,105720.0,105710.0,0.50826806]